bitfinex-derivatives/quotes_ETHF0:USTF0_20241004
["timestamp","ask_amount","ask_price","bid_price","bid_amount"]
[1728047434343,0.9689,2392.0,2391.5,0.94]
[1728047434551,1.38707,2392.0,2391.7,0.4182]
[1728047435241,1.38707,2392.0,2391.5,1.98562]
[1728047435644,1.38707,2392.0,2391.7,0.41821]
[1728047436443,0.9689,2392.0,2391.8,0.41819]
[1728047437548,0.9689,2392.0,2391.7,0.41821]
[1728047437549,0.41818,2391.9,2391.7,0.41821]
[1728047437751,1.38707,2392.0,2391.7,0.41821]
[1728047437962,0.41818,2391.9,2391.7,0.41821]
[1728047438550,0.4182,2391.8,2391.6,0.41822]
[1728047438752,0.9689,2392.0,2391.5,0.94]
[1728047438959,0.41818,2391.9,2391.7,0.41821]
[1728047439651,1.38707,2392.0,2391.7,0.4182]
[1728047440556,0.9689,2392.0,2391.7,0.4182]
[1728047440748,0.41819,2391.9,2391.6,0.41822]
[1728047441055,0.41819,2391.9,2391.5,0.94]
[1728047441244,0.41819,2391.9,2391.6,0.41823]
[1728047441445,0.41819,2391.9,2391.7,0.41821]
[1728047442352,0.41818,2391.9,2391.7,0.4182]
[1728047443755,0.41818,2391.9,2391.5,0.94]
[1728047443942,0.41818,2391.9,2391.6,0.41822]
[1728047444145,4.9889,2392.0,2391.6,0.41822]
[1728047444346,3.2078,2391.9,2391.5,0.94]
[1728047444554,4.02,2391.7,2391.0,4.148]
[1728047444749,0.41827,2391.4,2391.2,0.41829]
[1728047444951,0.41825,2391.5,2391.3,0.41827]
[1728047445143,1.38835,2391.5,2391.3,0.41827]
[1728047445554,3.69625096,2391.8,2391.6,0.41823]
[1728047445755,3.82439279,2391.9,2391.5,0.41825]
[1728047445756,0.41819,2391.9,2391.5,0.41825]
[1728047446067,2.01551,2392.0,2391.5,0.9836]
[1728047446255,1.04552,2391.8,2391.2,3.2078]
[1728047446647,2.73350094,2391.6,2391.1,0.9836]
[1728047446847,0.41829,2391.3,2391.1,1.40191]
[1728047447043,5.75273094,2391.5,2391.1,0.9836]
[1728047447251,0.41829,2391.3,2391.1,0.41831]
[1728047447649,1.46406,2391.2,2390.7,0.41838]
[1728047447856,12.45592,2391.3,2390.6,1.402]
[1728047447857,0.41837,2390.8,2390.6,1.402]
[1728047448156,7.17184094,2391.0,2390.6,0.9836]
[1728047448652,6.75350094,2391.0,2390.6,0.9836]
[1728047448857,2.73350094,2391.0,2390.9,0.41835]
[1728047449158,2.73498321,2391.1,2391.0,0.41833]
[1728047449364,2.73498321,2391.1,2391.0,1.30663]
[1728047449560,6.48585096,2391.7,2391.2,1.04574]
[1728047449561,2.73482757,2391.5,2391.2,1.04574]
[1728047449754,3.2078,2391.7,2391.2,1.04574]
[1728047449959,3.2078,2391.7,2391.5,0.41825]
[1728047450155,3.2078,2391.7,2391.6,0.41823]
[1728047450351,3.2078,2391.7,2391.2,3.2078]
[1728047450552,3.62602,2391.7,2391.4,0.41826]
[1728047450954,1.3868,2391.8,2391.4,0.41826]
[1728047451256,0.9686,2391.8,2391.2,3.2078]
[1728047451658,0.41822,2391.7,2391.3,0.41828]
[1728047451858,0.41822,2391.7,2391.2,3.2078]
[1728047452062,0.41823,2391.6,2391.3,0.41827]
[1728047452266,4.02,2391.6,2391.1,0.931]
[1728047452559,4.02,2391.6,2390.9,3.2078]
[1728047452560,1.04563,2391.5,2391.0,0.41833]
[1728047452762,1.04567,2391.4,2390.8,0.8776]
[1728047452965,1.04567,2391.4,2390.8,1.29595]
[1728047452966,5.98201,2391.3,2390.8,1.29595]
[1728047453262,0.41831,2391.2,2390.9,0.41834]
[1728047453664,6.28039,2391.3,2391.0,0.41833]
[1728047453869,2.26039,2391.3,2390.9,0.41835]
[1728047454072,3.2078,2391.8,2390.9,4.25369]
[1728047454361,2.7979,2391.8,2390.9,3.2078]
[1728047454561,0.41825,2391.5,2391.2,0.41829]
[1728047454757,5.0499,2391.8,2390.9,1.04588]
[1728047454758,2.88761,2391.8,2390.9,1.04588]
[1728047455065,0.41822,2391.7,2391.4,0.41825]
[1728047455254,2.2603,2391.8,2391.5,0.41823]
[1728047455660,1.8421,2391.8,2391.3,0.9688]
[1728047455876,2.26031,2391.8,2391.5,0.41824]
[1728047456164,5.12015096,2391.8,2391.3,0.9688]
[1728047456458,1.04554,2391.7,2391.3,0.41827]
[1728047456764,0.41826,2391.5,2391.3,0.41827]
[1728047456957,0.41826,2391.5,2390.9,0.9688]
[1728047456958,0.41827,2391.4,2391.2,0.41829]
[1728047457151,0.41827,2391.4,2391.2,0.4183]
[1728047457362,0.41826,2391.5,2391.2,0.41828]
[1728047457660,0.41826,2391.5,2391.3,0.41827]
[1728047458258,0.41826,2391.5,2391.4,0.41826]
[1728047458554,0.41826,2391.5,2391.3,0.41827]
[1728047458755,7.29805096,2391.6,2390.9,2.01468]
[1728047459065,7.71630096,2391.6,2391.4,0.41826]
[1728047459464,7.71630096,2391.6,2390.9,5.22248]
[1728047459465,3.27805096,2391.6,2391.5,0.41825]
[1728047459664,9.14015096,2391.8,2391.6,0.41823]
[1728047459863,9.55836096,2391.8,2391.6,0.41823]
[1728047460261,9.14015096,2391.8,2391.6,0.41823]
[1728047460559,9.14015096,2391.8,2391.2,1.04575]
[1728047460760,0.41825,2391.5,2391.4,0.41826]
[1728047461566,0.41826,2391.5,2390.9,4.1766]
[1728047461769,3.69629096,2391.6,2391.5,0.41825]
[1728047462363,0.41826,2391.5,2391.3,0.41827]
[1728047462567,3.27805096,2391.6,2391.1,1.04579]
[1728047462864,3.27805096,2391.6,2391.3,0.41828]
[1728047462865,0.41827,2391.4,2391.3,0.41828]
[1728047463462,1.38787,2391.4,2391.3,0.41828]
[1728047463658,0.41829,2391.3,2391.2,0.4183]
[1728047463867,3.67829,2391.3,2390.9,2.01467]
[1728047464068,0.41833,2391.1,2391.0,0.41833]
[1728047464272,3.26,2391.0,2390.6,1.04601]
[1728047464474,3.26,2390.7,2390.6,0.4184]
[1728047465564,0.4184,2390.7,2390.4,0.41843]
[1728047465762,0.4184,2390.7,2390.3,8.46573081]
[1728047465763,0.41839,2390.7,2390.5,0.41842]
[1728047465964,1.3464,2390.7,2390.4,0.41843]
[1728047466772,1.3464,2390.7,2390.3,8.46573081]
[1728047467074,1.3464,2390.7,2390.4,0.41843]
[1728047467975,1.3464,2390.7,2390.3,8.46573081]
[1728047467976,0.928,2390.7,2390.3,8.88417081]
[1728047468194,0.928,2390.7,2390.3,3.2078]
[1728047468471,0.41844,2390.4,2390.3,3.2078]
[1728047468687,4.02,2390.5,2390.3,3.2078]
[1728047468874,4.8956,2390.5,2390.4,0.41844]
[1728047469074,0.928,2390.7,2390.6,0.4184]
[1728047469576,0.928,2390.7,2390.5,0.41841]
[1728047469772,0.41841,2390.6,2390.4,0.41844]
[1728047469973,0.928,2390.7,2390.3,3.2078]
[1728047470169,0.41841,2390.6,2390.4,0.41843]
[1728047470477,1.34639,2390.7,2390.5,0.41841]
[1728047471281,0.928,2390.7,2390.6,0.4184]
[1728047472397,4.15365096,2390.9,2390.4,1.0461]
[1728047472576,4.15365096,2390.9,2390.3,3.2078]
[1728047472577,3.27805096,2390.9,2390.8,0.41837]
[1728047473286,3.69641096,2390.9,2390.6,0.41839]
[1728047473788,3.27805096,2390.9,2390.5,2.01806]
[1728047474081,3.27805096,2390.9,2390.8,0.41837]
[1728047475286,5.36762,2391.1,2390.9,0.41835]
[1728047475980,4.9493,2391.1,2390.6,4.1059]
[1728047476194,4.9493,2391.1,2391.0,0.41833]
[1728047476383,4.9493,2391.1,2390.9,0.41835]
[1728047476789,4.9493,2391.1,2390.6,1.94409]
[1728047476984,4.9493,2391.1,2391.0,0.41833]
[1728047477290,4.9493,2391.1,2390.7,1.04597]
[1728047477495,4.9493,2391.1,2391.0,0.41833]
[1728047477899,4.9493,2391.1,2390.9,0.41834]
[1728047479594,4.9493,2391.1,2390.8,0.41835]
[1728047479595,5.36762,2391.1,2390.8,0.41835]
[1728047479795,5.36762,2391.1,2390.3,8.40194]
[1728047479796,4.9493,2391.1,2390.3,8.40194]
[1728047479997,0.41838,2390.8,2390.3,4.25394]
[1728047480190,4.43838,2390.8,2390.3,4.25394]
[1728047480397,0.41839,2390.7,2390.5,0.41841]
[1728047480594,0.9509,2390.7,2390.5,0.41841]
[1728047480999,0.9509,2390.7,2390.6,0.4184]
[1728047481192,0.9293,2391.1,2390.9,0.41835]
[1728047481391,0.9293,2391.1,2391.0,0.41833]
[1728047481694,0.9509,2391.2,2391.1,0.41832]
[1728047482194,0.9307,2391.4,2390.9,4.25369]
[1728047482395,1.8933,2391.5,2391.4,0.41826]
[1728047482586,1.8933,2391.5,2391.0,1.04583]
[1728047482790,2.31155,2391.5,2391.2,1.32109]
[1728047482985,1.8933,2391.5,2391.3,0.41828]
[1728047483294,2.31156,2391.5,2391.2,1.32109]
[1728047483500,5.9133,2391.5,2391.2,0.9028]
[1728047483697,6.33156,2391.5,2391.2,0.41829]
[1728047483895,0.41828,2391.4,2391.1,0.41831]
[1728047484096,0.41827,2391.4,2391.2,0.4183]
[1728047484392,0.41827,2391.4,2391.1,0.4183]
[1728047484596,5.9133,2391.5,2390.9,4.25368]
[1728047484900,6.33156,2391.5,2391.2,0.41829]
[1728047485701,6.33156,2391.5,2390.9,4.25368]
[1728047485702,5.9133,2391.5,2390.9,4.25368]
[1728047485902,0.41827,2391.4,2391.1,0.41831]
[1728047486093,6.33156,2391.5,2391.2,0.41829]
[1728047486299,5.9133,2391.5,2390.9,4.25368]
[1728047486499,6.95893,2391.5,2390.8,0.9028]
[1728047486799,0.41835,2390.9,2390.7,0.972]
[1728047487109,1.04593,2390.8,2390.4,0.8844]
[1728047487405,0.9245,2390.7,2390.4,0.8844]
[1728047487602,3.27,2390.5,2390.4,1.30284]
[1728047488008,3.27,2390.5,2390.4,5.48604]
[1728047488901,0.9245,2390.7,2390.5,0.41842]
[1728047489103,4.1945,2390.7,2390.5,0.41842]
[1728047492601,4.1945,2390.7,2390.4,0.8844]
[1728047492898,4.1945,2390.7,2390.5,0.41841]
[1728047493298,4.1945,2390.7,2390.2,3.2078]
[1728047493510,3.27,2390.3,2390.0,0.4185]
[1728047493710,3.27,2390.1,2390.0,0.4185]
[1728047496097,5.0574,2390.2,2390.1,0.41849]
[1728047496304,4.1571,2390.4,2389.9,1.96481]
[1728047496605,4.1571,2390.4,2390.2,0.41847]
[1728047497198,4.1571,2390.4,2389.9,1.96481]
[1728047497408,4.1571,2390.4,2390.1,0.41848]
[1728047497601,4.1571,2390.4,2389.9,0.9185]
[1728047497813,4.1571,2390.4,2390.2,0.41847]
[1728047498404,4.1571,2390.4,2390.2,0.41846]
[1728047498702,4.1571,2390.4,2389.9,0.9185]
[1728047499104,4.1571,2390.4,2390.1,0.41849]
[1728047499105,3.27,2390.2,2390.1,0.41849]
[1728047502515,3.27,2390.2,2390.0,0.4185]
[1728047502816,3.27,2390.2,2390.1,0.41849]
[1728047503008,4.2026,2390.2,2390.1,0.41849]
[1728047506718,4.2026,2390.2,2390.0,0.4185]
[1728047506917,0.8822,2390.1,2390.0,0.41851]
[1728047509318,7.3288,2390.7,2390.1,0.41849]
[1728047509517,1.8168,2390.6,2390.5,0.41841]
[1728047509717,1.8168,2391.0,2390.4,6.4778]
[1728047509914,1.8168,2391.0,2390.9,0.41835]
[1728047510112,0.9819,2391.2,2391.1,0.41832]
[1728047510412,5.0604,2391.3,2391.2,0.4183]
[1728047511414,5.0604,2391.3,2390.8,0.9496]
[1728047511619,5.0604,2391.3,2391.1,0.4183]
[1728047511818,5.0604,2391.3,2391.2,0.4183]
[1728047512317,5.47869,2391.3,2390.9,0.41835]
[1728047512625,3.27,2391.1,2391.0,0.41833]
[1728047513321,3.27,2391.1,2390.7,3.2078]
[1728047513519,3.27,2390.9,2390.8,0.41836]
[1728047513913,3.27,2391.1,2391.0,0.41832]
[1728047519023,5.0604,2391.3,2390.7,3.2078]
[1728047519326,0.915,2391.3,2391.2,0.4183]
[1728047519629,0.9819,2391.5,2391.4,0.41826]
[1728047519934,4.2519,2391.5,2391.3,0.41827]
[1728047520632,4.2519,2391.5,2391.1,5.1137]
[1728047520633,4.2519,2391.5,2391.1,4.1853]
[1728047520817,3.27,2391.2,2391.1,3.2078]
[1728047521022,3.27,2391.2,2391.1,3.62612]
[1728047521235,3.27,2391.3,2391.2,0.41828]
[1728047521429,0.9819,2391.5,2391.4,0.41826]
[1728047521628,0.9565,2391.6,2391.5,0.41825]
[1728047522131,0.9179,2391.8,2391.7,0.41821]
[1728047522425,3.27,2392.0,2391.9,0.41818]
[1728047522624,3.27,2392.0,2391.6,0.41823]
[1728047522833,3.27,2392.0,2391.5,1.04562]
[1728047523125,3.27,2391.8,2391.6,0.41822]
[1728047523335,3.27,2391.8,2391.7,0.41821]
[1728047523734,3.27,2391.8,2391.6,0.41822]
[1728047523932,3.27,2391.8,2391.4,3.35093273]
[1728047524129,2.9226,2392.2,2391.4,3.2078]
[1728047524130,3.27,2391.5,2391.4,3.2078]
[1728047524430,3.27,2391.5,2391.3,0.41828]
[1728047524630,3.27,2391.5,2391.4,0.41826]
[1728047524839,0.954,2391.6,2391.1,4.2536]
[1728047524840,4.224,2391.6,2391.5,0.41825]
[1728047525025,3.27,2391.6,2391.5,0.41825]
[1728047527426,3.27,2391.6,2391.4,0.41825]
[1728047528055,0.9625,2391.5,2391.4,0.41825]
[1728047528630,4.2325,2391.5,2391.1,3.2078]
[1728047528826,5.1692,2391.5,2391.1,3.2078]
[1728047529254,5.1692,2391.5,2391.3,0.41828]
[1728047530129,1.8992,2391.5,2391.4,0.41826]
[1728047530331,0.9625,2391.5,2391.4,0.41826]
[1728047530728,0.98,2391.7,2391.4,0.41826]
[1728047530927,0.9503,2391.8,2391.4,3.62606]
[1728047531137,5.1322,2392.2,2391.5,7.4516]
[1728047531439,6.46443,2392.2,2391.7,1.04552]
[1728047531642,6.46444,2392.2,2391.9,0.41817]
[1728047532139,3.27,2392.1,2391.9,0.41817]
[1728047532633,3.68814,2392.1,2391.9,0.41817]
[1728047532834,0.41817,2392.0,2391.7,0.4182]
[1728047533028,3.27,2391.9,2391.7,0.4182]
[1728047533335,3.27,2391.9,2391.5,0.9116]
[1728047533336,3.27,2391.9,2391.1,3.2078]
[1728047533535,3.27,2391.3,2391.2,0.41829]
[1728047534133,4.2498,2391.3,2391.2,0.41829]
[1728047535239,4.2498,2391.3,2391.1,3.2078]
[1728047535541,4.2498,2391.3,2391.1,3.6261]
[1728047536140,4.2498,2391.3,2391.1,3.2078]
[1728047536440,3.27,2391.2,2391.1,3.2078]
[1728047536642,3.6883,2391.2,2391.1,3.2078]
[1728047537032,7.4524,2391.2,2390.5,4.1875]
[1728047537236,3.27,2390.9,2390.8,0.41837]
[1728047537437,3.27,2390.9,2390.5,4.1875]
[1728047537638,3.27,2390.9,2390.7,0.41837]
[1728047537830,3.27,2390.9,2390.8,0.41837]
[1728047538035,4.2396,2390.9,2390.7,0.41838]
[1728047538236,4.2396,2390.9,2390.8,0.41837]
[1728047538545,4.2396,2390.9,2390.5,4.32719876]
[1728047538745,4.2396,2390.9,2390.7,0.41839]
[1728047539067,4.2396,2390.9,2390.8,0.41837]
[1728047540454,4.2396,2390.9,2390.5,5.37325876]
[1728047540658,4.2396,2390.9,2390.8,0.41837]
[1728047540851,4.2396,2390.9,2390.7,0.41837]
[1728047541253,4.2396,2390.9,2390.8,0.41837]
[1728047541453,0.9696,2390.9,2390.8,0.41837]
[1728047542060,4.2396,2390.9,2390.5,4.1875]
[1728047542254,0.9696,2390.9,2390.5,5.23355]
[1728047542476,0.9696,2390.9,2390.8,0.41833]
[1728047542757,0.9696,2390.9,2390.8,3.62613]
[1728047542967,3.27,2391.4,2390.8,7.80853]
[1728047543153,0.9206,2391.5,2391.4,0.41822]
[1728047543458,3.27,2391.8,2391.4,3.2078]
[1728047543459,4.1769,2391.8,2391.4,3.2078]
[1728047543652,8.05812235,2391.9,2391.8,0.41815]
[1728047543956,0.9477,2391.9,2391.8,0.41815]
[1728047544158,0.9477,2391.9,2391.7,3.2078]
[1728047544159,3.27,2392.2,2392.0,0.41812]
[1728047544361,3.27,2392.2,2392.0,0.41811]
[1728047544549,3.27,2392.2,2391.9,0.41813]
[1728047544550,3.68809,2392.2,2391.9,0.41813]
[1728047544756,3.27,2392.2,2392.0,0.41812]
[1728047545157,3.27,2392.2,2391.7,3.35308408]
[1728047545357,3.68808,2392.2,2391.9,0.41813]
[1728047545556,3.68808,2392.2,2391.7,3.35308408]
[1728047545557,1.8546,2392.3,2392.0,0.41811]
[1728047546064,1.8546,2392.3,2391.7,4.32918408]
[1728047546372,2.27268,2392.3,2391.7,4.32918408]
[1728047546665,2.27268,2392.3,2392.0,0.41811]
[1728047547464,0.41811,2392.1,2391.8,0.41814]
[1728047547965,0.41811,2392.1,2391.9,0.41813]
[1728047548363,4.43809,2392.2,2392.0,0.41812]
[1728047549157,4.43809,2392.2,2391.9,0.41812]
[1728047549762,1.8546,2392.3,2391.7,4.25323]
[1728047550158,0.41808,2392.2,2392.0,0.41811]
[1728047550667,2.27268,2392.3,2392.0,0.41811]
[1728047550860,0.41809,2392.2,2391.7,4.25323]
[1728047551063,0.41809,2392.2,2391.9,0.41812]
[1728047551359,0.41809,2392.2,2392.0,0.41812]
[1728047551665,1.8546,2392.3,2392.2,0.41808]
[1728047551865,4.43799,2392.8,2392.5,0.41802]
[1728047552160,1.39899,2392.8,2392.5,0.41802]
[1728047552467,0.981,2392.8,2392.6,0.41801]
[1728047552667,0.981,2392.8,2392.7,0.418]
[1728047552856,0.981,2392.8,2392.6,3.62581]
[1728047553456,0.981,2392.8,2392.6,3.2078]
[1728047553457,1.39899,2392.8,2392.6,3.2078]
[1728047553765,1.39899,2392.8,2392.3,4.1202]
[1728047553766,0.981,2392.8,2392.3,4.1202]
[1728047554061,0.418,2392.7,2392.4,0.41804]
[1728047554266,0.41801,2392.7,2392.3,0.41805]
[1728047554471,0.981,2392.8,2392.5,0.41803]
[1728047554664,0.8978,2392.7,2392.5,0.41803]
[1728047554861,0.8978,2392.7,2392.3,3.2078]
[1728047555156,0.8978,2392.7,2392.5,0.41802]
[1728047555359,0.8978,2392.7,2392.3,3.2078]
[1728047555669,1.3158,2392.7,2392.3,3.62585]
[1728047555868,0.41801,2392.6,2392.1,0.9454]
[1728047556061,0.41801,2392.6,2392.0,3.62591]
[1728047556062,0.41805,2392.4,2392.0,3.62591]
[1728047556259,4.02,2392.5,2392.0,3.2078]
[1728047556562,0.8978,2392.7,2392.4,0.41804]
[1728047556955,0.8978,2392.7,2392.5,0.41803]
[1728047557863,1.3158,2392.7,2392.4,0.41804]
[1728047558070,0.8978,2392.7,2392.4,0.41804]
[1728047559669,1.3158,2392.7,2392.4,0.41804]
[1728047560065,0.8978,2392.7,2392.3,4.1043]
[1728047560365,0.8978,2392.7,2392.5,0.41803]
[1728047560569,0.8978,2392.7,2392.3,4.1043]
[1728047560764,0.41804,2392.5,2392.3,3.2078]
[1728047560971,0.8978,2392.7,2392.0,3.34949601]
[1728047561165,0.8978,2392.7,2392.3,4.25297]
[1728047561469,0.8978,2392.7,2392.5,0.41802]
[1728047561769,1.3158,2392.7,2392.5,0.41803]
[1728047561971,0.8978,2392.7,2392.3,3.2078]
[1728047562173,0.8978,2392.7,2392.6,0.41801]
[1728047562367,0.8978,2392.7,2392.5,0.41803]
[1728047566466,0.8978,2392.7,2392.4,0.9729]
[1728047566864,0.8978,2392.7,2392.5,0.41803]
[1728047567173,0.8978,2392.7,2392.5,0.41802]
[1728047567672,0.8978,2392.7,2392.6,0.41801]
[1728047567874,0.8978,2392.7,2392.6,3.62581]
[1728047568067,1.04478,2393.2,2392.6,4.25284]
[1728047568068,3.26,2393.2,2392.6,4.25284]
[1728047568285,0.8942,2393.1,2393.0,0.41794]
[1728047568608,3.26,2393.2,2393.0,0.41794]
[1728047568609,4.30453,2393.8,2393.0,8.48326]
[1728047568773,0.41786,2393.5,2393.2,3.6257]
[1728047568974,1.31205,2393.6,2393.2,3.2078]
[1728047569298,0.41786,2393.5,2393.2,3.2078]
[1728047570066,4.1542,2393.6,2393.2,3.2078]
[1728047570278,0.8942,2393.6,2393.4,0.41787]
[1728047570464,0.8942,2393.6,2393.2,6.4678]
[1728047570663,0.8942,2393.6,2393.3,0.41788]
[1728047570866,3.26,2394.0,2393.4,3.26]
[1728047571070,4.60378,2394.0,2393.5,3.62564]
[1728047571377,0.41781,2393.8,2393.5,3.2078]
[1728047571572,0.4178,2393.9,2393.5,3.62565]
[1728047571971,0.4178,2393.9,2393.5,3.62566]
[1728047572175,0.4178,2393.9,2393.5,3.62564]
[1728047573173,3.26,2393.8,2393.5,3.2078]
[1728047573479,1.35633,2393.7,2393.4,0.41787]
[1728047573678,1.35633,2393.7,2393.3,0.9726]
[1728047573679,0.9385,2393.7,2393.3,0.9726]
[1728047574079,1.924,2393.7,2393.3,0.9726]
[1728047574278,0.41784,2393.6,2393.3,1.39048]
[1728047574479,1.37146,2393.5,2393.2,3.6257]
[1728047574674,0.9536,2393.5,2393.1,0.9401]
[1728047574879,3.26,2393.4,2392.9,4.1977]
[1728047575081,3.67788,2393.4,2393.1,0.41792]
[1728047575377,3.26,2393.4,2393.1,0.41791]
[1728047575680,3.67788,2393.4,2393.1,0.41792]
[1728047576278,4.30469,2393.4,2392.9,4.1977]
[1728047576472,3.26,2393.2,2393.0,0.41794]
[1728047576673,3.26,2393.4,2392.9,5.24261]
[1728047576979,3.26,2393.4,2393.2,0.41791]
[1728047577173,3.67788,2393.4,2393.1,0.41792]
[1728047577376,3.67789,2393.4,2393.1,0.41792]
[1728047577875,3.26,2393.4,2392.9,4.1977]
[1728047578179,0.41792,2393.2,2393.0,0.41794]
[1728047578581,0.41792,2393.2,2392.9,4.1977]
[1728047578776,0.4179,2393.3,2393.0,0.41794]
[1728047579273,0.41793,2393.2,2392.9,4.61565]
[1728047579469,0.41792,2393.2,2392.9,0.41795]
[1728047579676,0.41792,2393.2,2392.6,4.1331]
[1728047579677,3.26,2393.0,2392.6,3.2078]
[1728047579873,0.9244,2392.9,2392.6,3.2078]
[1728047580079,0.41802,2392.6,2392.4,0.41804]
[1728047580481,1.9145,2392.7,2392.6,0.41801]
[1728047580783,0.9244,2392.9,2392.8,0.41798]
[1728047580978,0.9702,2393.4,2392.9,1.04491]
[1728047581289,0.9702,2393.4,2393.0,4.30487]
[1728047581473,1.8687,2393.7,2393.2,3.2078]
[1728047581676,1.8687,2393.7,2393.5,0.41785]
[1728047581884,2.28653,2393.7,2393.4,0.41787]
[1728047582178,1.8687,2393.7,2393.2,4.1987]
[1728047582384,1.8687,2393.7,2393.5,0.41785]
[1728047582600,2.28653,2393.7,2393.4,0.41786]
[1728047582785,2.28653,2393.7,2393.5,0.41784]
[1728047582786,1.8687,2393.7,2393.5,0.41784]
[1728047583676,1.8687,2393.7,2393.2,5.24347]
[1728047583878,2.28653,2393.7,2393.4,0.41787]
[1728047584080,1.8687,2393.7,2393.4,0.41787]
[1728047584479,1.8687,2393.7,2393.2,5.24347]
[1728047584789,0.41778,2394.0,2393.7,0.41781]
[1728047584985,1.34798,2394.0,2393.7,0.41781]
[1728047585581,0.9302,2394.0,2393.8,0.4178]
[1728047585978,0.9302,2394.0,2393.7,0.9791]
[1728047586210,0.9302,2394.0,2393.8,0.4178]
[1728047586683,0.9302,2394.0,2393.7,0.9791]
[1728047586891,0.9302,2394.0,2393.8,0.4178]
[1728047587579,0.41783,2393.7,2393.5,3.2078]
[1728047587986,5.05447,2393.9,2393.2,1.957]
[1728047588206,0.41786,2393.5,2393.2,2.3749]
[1728047588389,0.9172,2393.4,2393.0,3.2078]
[1728047588600,0.9172,2393.4,2393.3,0.41789]
[1728047588790,0.9172,2393.4,2393.0,3.2078]
[1728047588984,0.9172,2393.4,2393.2,0.4179]
[1728047589577,0.9172,2393.4,2393.0,3.2078]
[1728047590101,11.41273339,2394.2,2393.0,7.2178]
[1728047590290,0.9877,2393.9,2393.3,3.2078]
[1728047590606,0.9877,2393.9,2393.7,0.41782]
[1728047590788,0.9877,2393.9,2393.8,0.4178]
[1728047590987,1.9671,2394.1,2393.9,0.41778]
[1728047591187,1.9671,2394.1,2393.8,0.41779]
[1728047591498,1.9671,2394.1,2393.6,3.2078]
[1728047591687,1.9671,2394.1,2393.8,0.4178]
[1728047592091,0.9903,2394.1,2393.8,0.4178]
[1728047592391,4.68717339,2394.2,2393.9,3.2078]
[1728047592392,4.26943339,2394.2,2393.9,3.2078]
[1728047592593,3.28173339,2394.2,2394.1,0.41775]
[1728047593385,3.28173339,2394.2,2394.0,1.8848]
[1728047593386,3.28173339,2394.2,2394.0,2.30256]
[1728047593594,3.28173339,2394.2,2394.0,1.8848]
[1728047593798,3.28173339,2394.2,2394.0,2.30257]
[1728047593992,3.28173339,2394.2,2394.0,1.8848]
[1728047594695,3.28173339,2394.2,2393.9,3.2078]
[1728047594897,3.28173339,2394.2,2394.0,0.41776]
[1728047595393,1.9184,2394.5,2393.9,3.2078]
[1728047595591,1.9184,2394.5,2394.1,0.41774]
[1728047595592,2.33609,2394.5,2394.1,0.41774]
[1728047596498,1.9184,2394.5,2394.2,0.41772]
[1728047596693,1.9184,2394.5,2394.0,0.41776]
[1728047596694,0.41771,2394.4,2394.0,0.41776]
[1728047596899,1.9184,2394.5,2393.9,3.2078]
[1728047597195,0.41775,2394.1,2393.9,3.2078]
[1728047597396,0.905,2394.0,2393.9,3.2078]
[1728047598406,1.8841,2394.0,2393.9,3.62559]
[1728047599098,5.2329,2394.6,2393.9,3.2078]
[1728047599292,2.32053,2394.3,2394.0,0.41776]
[1728047599597,2.32053,2394.3,2393.9,3.2078]
[1728047599898,2.32053,2394.3,2394.1,0.41775]
[1728047600098,2.32053,2394.3,2393.9,3.2078]
[1728047600299,0.41774,2394.2,2394.0,0.41776]
[1728047600499,1.9028,2394.3,2393.9,3.2078]
[1728047600695,2.32052,2394.3,2394.1,0.41774]
[1728047600897,2.32053,2394.3,2394.1,0.41775]
[1728047601290,1.9028,2394.3,2394.1,0.41775]
[1728047601497,1.9028,2394.3,2394.2,0.41773]
[1728047602005,0.9237,2394.3,2394.2,0.41773]
[1728047602401,0.9237,2394.3,2394.2,3.62553]
[1728047603503,0.9809,2394.6,2394.2,11.3946]
[1728047603709,0.9809,2394.6,2394.5,3.67768]
[1728047603896,0.9809,2394.6,2394.5,3.26]
[1728047604096,0.41769,2394.5,2394.2,3.62552]
[1728047604301,0.9305,2394.5,2394.2,3.2078]
[1728047604503,0.41771,2394.4,2394.1,0.41775]
[1728047604702,0.4177,2394.4,2394.0,0.41775]
[1728047604904,0.4177,2394.4,2393.9,6.4678]
[1728047605208,0.4177,2394.4,2394.1,0.41775]
[1728047605795,0.9305,2394.5,2394.1,3.26]
[1728047605999,1.34819,2394.5,2394.2,0.41772]
[1728047606599,0.9305,2394.5,2394.3,0.41771]
[1728047606804,1.34818,2394.5,2394.3,0.41771]
[1728047607003,0.4177,2394.4,2394.2,0.41773]
[1728047607804,0.9305,2394.5,2394.2,0.41773]
[1728047608009,0.4177,2394.4,2394.2,0.41773]
[1728047608711,0.4177,2394.4,2394.2,0.41772]
[1728047609108,1.34819,2394.5,2394.3,0.41771]
[1728047610617,0.9305,2394.5,2394.4,0.4177]
[1728047610930,0.9305,2394.5,2394.2,3.2078]
[1728047611109,1.34819,2394.5,2394.3,0.41771]
[1728047611416,0.41772,2394.3,2393.9,7.51223]
[1728047611610,0.8769,2394.2,2394.1,0.41775]
[1728047612506,1.29463,2394.2,2394.1,0.41775]
[1728047612811,0.8769,2394.2,2394.1,0.41775]
[1728047613905,1.29463,2394.2,2394.0,0.41776]
[1728047614103,1.8093,2394.1,2394.0,0.41776]